bitfinex-derivatives/quotes_ETHF0:USTF0_20241207
["timestamp","ask_amount","ask_price","bid_price","bid_amount"]
[1733541096669,0.17536,3985.5,3985.4,0.4012]
[1733541097470,0.17537,3985.3,3985.2,3.2078]
[1733541097873,0.90519991,3985.3,3985.2,3.38317]
[1733541098477,1.08056991,3985.3,3985.2,11.08348813]
[1733541098771,1.08056991,3985.3,3985.2,3.2078]
[1733541098966,0.90519991,3985.3,3985.2,3.2078]
[1733541099275,1.08056991,3985.3,3985.2,3.2078]
[1733541099574,0.90519991,3985.3,3985.2,3.2078]
[1733541099869,0.90519991,3985.3,3985.2,3.38317]
[1733541100860,0.17535,3985.7,3985.5,0.17536]
[1733541101066,0.90519991,3985.9,3985.6,4.31934958]
[1733541101266,0.17535,3985.8,3985.7,0.3848]
[1733541101577,0.17535,3985.8,3985.7,4.31584958]
[1733541102263,0.90519991,3985.9,3985.7,4.71664958]
[1733541102472,0.90519991,3985.9,3985.8,0.17535]
[1733541102665,0.90519991,3985.9,3985.8,3.93104958]
[1733541102867,1.08053991,3985.9,3985.8,3.93104958]
[1733541103170,1.08053991,3985.9,3985.8,3.93062671]
[1733541103471,3.6113,3986.3,3985.7,6.68217437]
[1733541103665,1.08052991,3986.1,3986.0,3.93052034]
[1733541104362,3.2078,3986.7,3985.9,5.89657437]
[1733541104673,3.2078,3986.7,3986.0,5.89657437]
[1733541104674,0.17533,3986.1,3986.0,5.89657437]
[1733541106075,1.08052991,3986.2,3986.0,6.07190437]
[1733541106275,1.08052991,3986.2,3986.1,3.93076374]
[1733541106468,0.90519991,3986.2,3986.1,3.93076374]
[1733541106667,1.08052991,3986.2,3986.1,3.93076374]
[1733541108380,1.08052991,3986.2,3986.0,9.27971437]
[1733541108574,1.08052991,3986.2,3986.1,4.1068226]
[1733541108775,1.08052991,3986.2,3986.1,4.10680645]
[1733541109273,1.08052991,3986.2,3986.1,0.17533]
[1733541109673,1.08052991,3986.2,3986.1,5.89657437]
[1733541110175,0.3884,3986.8,3986.0,3.2078]
[1733541110176,0.17533,3986.1,3986.0,3.2078]
[1733541110377,1.08052991,3986.1,3986.0,9.10437437]
[1733541111083,1.08052991,3986.1,3986.0,7.14026804]
[1733541111482,1.08052991,3986.1,3986.0,7.31560804]
[1733541111781,1.08052991,3986.1,3986.0,3.38314]
[1733541112177,0.90519991,3986.1,3986.0,9.27971437]
[1733541113081,1.08052991,3986.1,3986.0,9.27971437]
[1733541113281,1.08052991,3986.1,3986.0,3.38314]
[1733541114977,1.08052991,3986.1,3986.0,3.2078]
[1733541115777,1.08052991,3986.1,3986.0,3.38314]
[1733541116281,1.08052991,3986.1,3986.0,3.2078]
[1733541116486,1.08052991,3986.1,3986.0,3.38314]
[1733541117175,0.90519991,3986.1,3986.0,3.38314]
[1733541117782,1.08052991,3986.1,3986.0,3.38314]
[1733541119477,0.90519991,3986.1,3986.0,3.38314]
[1733541119678,3.11105319,3986.5,3986.4,0.17532]
[1733541119881,1.08051991,3986.5,3986.4,0.17532]
[1733541120279,0.17533,3986.3,3986.2,0.17533]
[1733541120475,0.17533,3986.3,3986.2,0.99543]
[1733541120683,0.17533,3986.3,3986.2,0.8201]
[1733541120880,0.90519991,3986.5,3986.2,0.8201]
[1733541121179,0.17532,3986.4,3986.3,0.4008]
[1733541121581,0.17532,3986.4,3986.3,0.57612]
[1733541121784,1.08051991,3986.5,3986.4,0.17532]
[1733541122085,1.08051991,3986.5,3986.4,3.93662065]
[1733541122287,0.17532,3986.4,3986.3,6.47269437]
[1733541122489,1.08051991,3986.5,3986.4,0.17532]
[1733541122981,0.4081,3986.9,3986.6,0.17531]
[1733541122982,1.08050991,3986.7,3986.6,0.17531]
[1733541123185,0.17531,3986.6,3986.5,3.93719205]
[1733541123389,0.17532,3986.4,3986.3,0.4008]
[1733541123581,1.08051991,3986.4,3986.3,0.4008]
[1733541124487,1.08051991,3986.4,3986.3,4.33799205]
[1733541125288,1.08051991,3986.4,3986.3,0.4008]
[1733541125787,0.17532,3986.3,3986.2,3.93719205]
[1733541125987,0.17533,3986.2,3986.1,3.93719205]
[1733541126183,0.17533,3986.1,3986.0,7.14499205]
[1733541126385,1.08052991,3986.1,3986.0,7.96389205]
[1733541126601,0.17533,3986.1,3986.0,4.75609205]
[1733541126793,1.08052991,3986.1,3986.0,4.75609205]
[1733541126979,1.08052991,3986.1,3986.0,0.8189]
[1733541127184,1.08052991,3986.1,3986.0,6.72451072]
[1733541127381,1.08052991,3986.1,3986.0,7.10961072]
[1733541127682,1.08052991,3986.1,3986.0,1.204]
[1733541129589,0.90519991,3986.1,3986.0,1.204]
[1733541129791,2.93573319,3986.3,3986.0,1.204]
[1733541130089,0.17533,3986.1,3986.0,1.204]
[1733541130691,0.17533,3986.1,3986.0,1.37934]
[1733541130888,0.17533,3986.1,3986.0,1.204]
[1733541135592,3.8409331,3986.3,3986.0,1.204]
[1733541135793,3.8409331,3986.3,3986.0,1.37934]
[1733541135794,0.17533,3986.2,3986.0,1.37934]
[1733541136202,0.17533,3986.1,3986.0,1.204]
[1733541136594,0.90519991,3986.3,3986.0,1.204]
[1733541136799,1.08051991,3986.3,3986.2,5.91012001]
[1733541136999,0.90519991,3986.3,3986.0,9.25502813]
[1733541137199,0.17533,3986.1,3986.0,9.07968813]
[1733541137498,0.17533,3986.1,3986.0,1.204]
[1733541137699,0.17533,3986.1,3986.0,7.11541874]
[1733541138202,0.17533,3986.1,3986.0,7.1153888]
[1733541138506,0.17533,3986.1,3986.0,6.7099888]
[1733541140398,0.17533,3986.1,3986.0,0.7986]
[1733541141193,0.17533,3986.1,3986.0,0.4135]
[1733541142195,4.11299991,3986.2,3985.6,0.7901]
[1733541142399,0.17535,3985.7,3985.6,0.7901]
[1733541154312,0.17535,3985.7,3985.6,10.65046577]
[1733541154907,0.17535,3985.7,3985.6,0.7901]
[1733541156210,0.17535,3985.7,3985.6,10.64954917]
[1733541156410,0.17535,3985.7,3985.6,10.64970476]
[1733541157214,0.17535,3985.7,3985.6,0.7901]
[1733541157517,0.17535,3985.7,3985.6,10.64966572]
[1733541157807,0.17535,3985.7,3985.6,0.7901]
[1733541158615,0.17535,3985.7,3985.6,10.64968712]
[1733541159118,0.17535,3985.7,3985.6,0.7901]
[1733541159411,0.17535,3985.7,3985.6,10.64999003]
[1733541161611,3.2078,3986.2,3985.6,10.64999003]
[1733541161913,0.17533,3986.1,3986.0,7.88731874]
[1733541162115,0.17534,3985.9,3985.8,10.03524003]
[1733541162416,0.17534,3985.9,3985.8,0.17535]
[1733541162619,0.17534,3985.9,3985.8,10.03415695]
[1733541164719,3.2078,3986.2,3985.8,9.85880695]
[1733541164920,3.38313,3986.2,3986.1,7.88737735]
[1733541165616,0.17533,3986.2,3986.0,9.85880695]
[1733541165821,0.17533,3986.2,3986.1,10.24760695]
[1733541166025,0.17533,3986.2,3986.1,10.42293695]
[1733541166222,0.17533,3986.2,3986.1,0.56413]
[1733541166418,0.17533,3986.2,3986.1,0.3888]
[1733541166822,3.84625585,3986.5,3986.1,0.3888]
[1733541166823,0.17532,3986.5,3986.2,0.17533]
[1733541167024,0.17532,3986.5,3986.4,6.08979187]
[1733541167227,0.17532,3986.4,3986.3,0.4151]
[1733541167523,0.17532,3986.4,3986.3,6.32866248]
[1733541168023,0.17532,3986.4,3986.3,0.4151]
[1733541168325,0.17532,3986.4,3986.3,6.32866248]
[1733541170725,0.17531,3986.6,3986.4,0.17532]
[1733541170923,0.17532,3986.5,3986.4,5.91232407]
[1733541171723,0.17532,3986.5,3986.3,6.32742407]
[1733541172126,0.17532,3986.5,3986.3,6.50274407]
[1733541173231,0.17532,3986.4,3986.3,6.32742407]
[1733541173831,0.17532,3986.4,3986.3,0.59042]
[1733541174026,0.17532,3986.4,3986.3,6.50274407]
[1733541174331,1.29869991,3986.8,3986.4,0.17532]
[1733541174540,0.17532,3986.6,3986.5,0.4136]
[1733541175022,0.17532,3986.6,3986.5,5.90974651]
[1733541176627,0.17532,3986.6,3986.3,0.4151]
[1733541176628,0.17532,3986.5,3986.4,5.90974651]
[1733541177327,0.17532,3986.4,3986.3,0.4151]
[1733541177529,0.17531,3986.6,3986.3,0.4151]
[1733541177731,0.17531,3986.7,3986.5,0.17531]
[1733541177931,0.17531,3986.7,3986.6,5.90874198]
[1733541178232,1.29869991,3986.8,3986.3,8.3010625]
[1733541178233,0.90519991,3986.8,3986.3,8.3010625]
[1733541178422,0.90519991,3986.8,3986.6,5.90813839]
[1733541178423,0.17531,3986.7,3986.6,5.90813839]
[1733541181336,0.17531,3986.6,3986.5,3.93823094]
[1733541181637,3.84625585,3986.8,3986.4,3.93823094]
[1733541181837,0.17531,3986.6,3986.5,0.17532]
[1733541182334,0.17531,3986.6,3986.4,4.11355094]
[1733541182529,0.17532,3986.5,3986.4,4.11355094]
[1733541183136,0.17532,3986.5,3986.4,3.93823094]
[1733541184136,0.90519991,3986.8,3986.3,0.59042]
[1733541184327,0.90519991,3986.8,3986.4,3.93735437]
[1733541184532,0.17532,3986.5,3986.4,3.93735437]
[1733541185038,0.17532,3986.5,3986.4,4.11267437]
[1733541185840,0.1753,3986.9,3986.7,0.1753]
[1733541186041,0.1753,3987.0,3986.8,0.5558]
[1733541186238,0.1753,3987.0,3986.9,0.3955]
[1733541186443,0.1753,3987.0,3986.9,0.5708]
[1733541186842,0.17529,3987.1,3986.9,0.5708]
[1733541187034,2.94105594,3987.2,3986.9,0.3955]
[1733541187236,0.17529,3987.0,3986.9,0.3955]
[1733541188037,0.17529,3987.0,3986.9,0.5708]
[1733541188542,0.17529,3987.0,3986.9,0.3955]
[1733541189238,0.17529,3987.0,3986.9,6.30363839]
[1733541190243,4.50829991,3987.4,3986.9,6.30363839]
[1733541190545,0.17529,3987.0,3986.9,6.47893839]
[1733541191536,0.17529,3987.1,3986.9,6.47893839]
[1733541192441,0.17529,3987.1,3987.0,0.3816]
[1733541192837,0.17529,3987.1,3987.0,0.55689]
[1733541193333,4.50829991,3987.4,3987.0,0.55689]
[1733541193539,0.17529,3987.2,3987.1,3.93440047]
[1733541193736,0.17529,3987.2,3987.1,4.10969047]
[1733541193939,0.17529,3987.2,3987.1,3.93440047]
[1733541195945,3.2078,3987.8,3987.1,5.90813839]
[1733541196144,3.38306,3987.8,3987.4,3.93390298]
[1733541196450,3.2078,3987.8,3987.7,0.17526]
[1733541196642,0.3983,3988.1,3987.6,5.90813839]
[1733541196836,0.90519991,3988.6,3987.8,3.93242683]
[1733541197042,0.17523,3988.4,3988.2,0.17524]
[1733541197347,1.08042991,3988.4,3988.3,0.7856]
[1733541197649,1.08042991,3988.4,3988.3,1.1877]
[1733541198342,0.90519991,3988.4,3988.3,1.1877]
[1733541198648,0.90519991,3988.7,3988.3,1.36294]
[1733541198951,0.17522,3988.6,3988.3,1.36294]
[1733541199148,0.90519991,3988.7,3988.3,1.1877]
[1733541199649,0.17523,3988.5,3988.3,1.1877]
[1733541200150,0.17522,3988.6,3988.3,1.1877]
[1733541200348,0.90519991,3988.7,3988.3,1.1877]
[1733541200852,0.17523,3988.5,3988.4,0.17523]
[1733541201049,0.17523,3988.6,3988.4,0.17523]
[1733541201258,0.17523,3988.6,3988.5,0.17523]
[1733541201542,0.17523,3988.6,3988.4,0.17523]
[1733541201742,0.90519991,3988.7,3988.3,1.1877]
[1733541201947,0.90519991,3988.7,3988.3,1.36293]
[1733541201948,0.17523,3988.5,3988.3,1.36293]
[1733541202348,0.90519991,3988.7,3988.3,1.1877]
[1733541202543,0.17523,3988.4,3988.3,1.1877]
[1733541202938,0.17523,3988.4,3988.2,0.17524]
[1733541202939,0.17525,3988.1,3988.0,3.8778]
[1733541203146,0.17524,3988.2,3988.0,4.05305]
[1733541203443,0.17524,3988.2,3988.0,3.38305]
[1733541203644,0.56914,3988.3,3988.0,3.2078]
[1733541203849,0.56914,3988.3,3988.1,0.17524]
[1733541204953,0.17524,3988.2,3988.1,0.17524]
[1733541205251,0.56914,3988.3,3988.1,0.17524]
[1733541205550,0.3939,3988.3,3988.1,0.17524]
[1733541205852,0.17524,3988.3,3988.1,0.17525]
[1733541206450,0.90519991,3988.6,3988.1,0.17525]
[1733541206649,0.17524,3988.3,3988.1,0.17525]
[1733541207246,0.90519991,3988.6,3988.1,0.17525]
[1733541207454,0.17524,3988.3,3988.1,0.17525]
[1733541207958,0.17524,3988.3,3988.2,0.17524]
[1733541208256,0.17523,3988.4,3988.2,0.17524]
[1733541208651,0.17523,3988.4,3988.3,0.4056]
[1733541211344,0.17523,3988.4,3988.3,0.58084]
[1733541211548,0.17523,3988.4,3988.3,0.4056]
[1733541214258,0.3982,3988.7,3988.3,0.4056]
[1733541214461,0.17523,3988.4,3988.3,0.4056]
[1733541215263,0.17523,3988.4,3988.3,0.58084]
[1733541218367,0.17523,3988.4,3988.3,0.4056]
[1733541219063,0.17523,3988.4,3988.3,0.58084]
[1733541219359,0.3982,3988.7,3988.3,0.4056]
[1733541219563,0.17523,3988.6,3988.3,0.4056]
[1733541219863,0.17523,3988.6,3988.5,0.17523]
[1733541220062,0.17523,3988.5,3988.4,0.17523]
[1733541220255,3.5962,3989.0,3988.3,0.4056]
[1733541220457,0.17523,3988.4,3988.3,0.58084]
[1733541220857,0.90519991,3988.8,3988.3,0.4056]
[1733541221058,0.17523,3988.5,3988.4,0.17523]
[1733541221556,0.90519991,3988.8,3988.3,0.4056]
[1733541221762,0.17523,3988.5,3988.4,0.17523]
[1733541222157,0.17522,3988.7,3988.4,0.17523]
[1733541222357,0.17523,3988.4,3988.3,0.58083]
[1733541222559,0.17523,3988.4,3988.3,0.4056]
[1733541222862,0.17523,3988.4,3988.3,0.58084]
[1733541223861,0.17523,3988.4,3988.3,0.4056]
[1733541225161,0.17523,3988.5,3988.4,0.17523]
[1733541226067,0.17523,3988.5,3988.3,0.58083]
[1733541226267,0.17523,3988.5,3988.4,0.17523]
[1733541227065,0.17523,3988.4,3988.3,0.58083]
[1733541227260,0.17521,3988.9,3988.4,0.17523]
[1733541227463,0.17523,3988.5,3988.4,0.17523]
[1733541228168,0.17523,3988.5,3988.4,1.08042991]
[1733541230263,0.17523,3988.4,3988.3,0.58083]
[1733541231570,0.17523,3988.4,3988.3,0.4056]
[1733541231775,0.17523,3988.4,3988.3,4.50524328]
[1733541232377,0.17523,3988.4,3988.3,5.32324328]
[1733541233274,0.17523,3988.4,3988.3,5.14800328]
[1733541233575,0.17523,3988.4,3988.3,1.39884]
[1733541233878,0.17523,3988.4,3988.3,1.2236]
[1733541234074,0.17524,3988.2,3988.1,3.8738]
[1733541234576,0.17524,3988.2,3988.1,0.666]
[1733541240682,0.17524,3988.2,3988.1,4.59040328]
[1733541241578,0.17524,3988.2,3988.1,10.47700821]
[1733541242476,0.17524,3988.2,3988.1,0.666]
[1733541242677,0.3878,3988.5,3988.0,0.90519991]
[1733541242878,0.17524,3988.3,3988.2,9.85903525]
[1733541243877,0.17524,3988.3,3988.2,10.03427525]
[1733541245485,0.17524,3988.2,3988.1,0.17524]
[1733541247083,3.36632765,3988.8,3988.0,0.665]
[1733541247286,0.17522,3988.6,3988.5,7.88718102]
[1733541248681,0.17523,3988.4,3988.3,7.88718102]
[1733541249592,2.92828765,3988.5,3988.2,7.88718102]
[1733541249884,0.17524,3988.3,3988.2,7.88718102]
[1733541250683,0.17524,3988.3,3987.9,11.05257627]
[1733541250684,0.90519991,3988.3,3988.1,7.88718102]
[1733541250889,0.90519991,3988.3,3987.9,0.399]
[1733541250890,0.17525,3988.1,3988.0,7.88718102]
[1733541251287,0.17525,3988.0,3987.9,8.28618102]
[1733541251681,0.17525,3988.0,3987.9,0.399]
[1733541252495,0.17526,3987.8,3987.7,7.88718102]
[1733541252786,0.17526,3987.8,3987.4,10.23477627]
[1733541252787,0.17526,3987.7,3987.6,7.88718102]
[1733541252988,0.90519991,3987.7,3987.4,8.26298102]
[1733541253191,0.17527,3987.5,3987.4,0.3758]
[1733541256086,0.17527,3987.5,3987.4,6.28451082]
[1733541256791,0.17527,3987.5,3987.4,0.3758]
[1733541260194,0.17528,3987.2,3987.1,4.7290561]
[1733541260398,0.17528,3987.2,3987.1,5.1279561]
[1733541260590,0.17528,3987.2,3987.1,1.1897]
[1733541264199,0.17528,3987.2,3987.1,5.12295572]
[1733541265389,0.17528,3987.2,3987.1,4.72635572]
[1733541266300,0.17528,3987.2,3987.1,0.7931]
[1733541266598,0.17528,3987.2,3986.7,0.666]
[1733541266599,0.1753,3986.8,3986.7,3.93325572]
[1733541266904,1.28459991,3987.1,3986.5,7.93395572]
[1733541267090,1.28459991,3987.1,3986.5,4.72615572]
[1733541267091,0.17531,3986.6,3986.5,4.72615572]
[1733541267593,0.17531,3986.6,3986.5,0.7929]
[1733541271098,0.17531,3986.6,3986.5,1.69809991]
[1733541273305,0.17531,3986.6,3986.5,0.7929]
[1733541275700,3.2078,3987.0,3986.5,0.7929]
[1733541275902,0.17531,3986.6,3986.5,0.7929]
[1733541276200,0.17531,3986.8,3986.5,0.96821]
[1733541276901,3.2078,3987.0,3986.5,0.7929]
[1733541277102,0.17531,3986.6,3986.5,0.7929]
[1733541290807,0.17531,3986.6,3986.5,0.3973]
[1733541291005,0.17532,3986.5,3986.4,0.3806]
[1733541291202,1.08051991,3986.5,3986.4,0.3806]
[1733541297014,1.08051991,3986.5,3985.9,0.7917]
[1733541297015,4.11299991,3986.5,3985.9,0.7917]
[1733541297214,0.17534,3986.0,3985.9,0.7917]
[1733541300420,0.90519991,3986.2,3985.9,0.7917]
[1733541300612,3.2078,3986.5,3985.9,0.7917]
[1733541300613,0.17534,3986.0,3985.9,4.72262337]
[1733541301316,0.17534,3986.0,3985.9,4.89796337]
[1733541301518,0.17534,3986.0,3985.9,8.82888674]
[1733541302013,0.17534,3986.0,3985.9,8.65354674]
[1733541302207,0.3897,3986.7,3985.9,10.22474665]
[1733541302412,4.11299991,3986.9,3986.5,5.90433944]
[1733541302611,0.1753,3986.8,3986.7,3.93597376]
[1733541304419,0.17531,3986.7,3986.6,7.13143944]
[1733541304810,0.17531,3986.7,3986.6,1.2271]
[1733541305018,0.17531,3986.7,3986.6,0.8174]
[1733541305215,0.393,3986.8,3986.4,5.90433944]
[1733541305415,0.4003,3986.7,3986.5,3.93810656]
[1733541305618,0.17531,3986.6,3986.5,3.93810656]
[1733541306924,0.17531,3986.6,3986.4,3.93810656]
[1733541306925,0.17532,3986.5,3986.4,3.93810656]
[1733541307121,0.17532,3986.4,3986.3,3.93810656]
[1733541307320,4.11299991,3986.5,3986.2,6.30953944]
[1733541307526,0.57992,3986.3,3986.2,6.30953944]
[1733541307823,0.57992,3986.3,3986.2,0.4052]
[1733541308023,0.57992,3986.3,3986.2,6.30953944]
[1733541308424,0.57992,3986.3,3986.2,0.4052]
[1733541309321,3.51148622,3986.3,3986.2,0.4052]
[1733541309521,0.57992,3986.3,3986.2,0.4052]
[1733541310017,0.57992,3986.3,3986.1,0.8078]
[1733541310018,0.4046,3986.3,3985.9,3.93957]
[1733541310219,0.17534,3985.9,3985.8,3.93957]
[1733541310428,0.17534,3985.9,3985.6,6.29433944]
[1733541310429,0.90519991,3986.0,3985.7,3.93957]
[1733541310623,0.17535,3985.8,3985.7,3.93957]
[1733541310822,0.90519991,3986.0,3985.6,4.32957]
[1733541311024,1.08054991,3985.7,3985.6,3.93957]
[1733541311220,0.17536,3985.6,3985.5,3.93957]
[1733541311415,0.90519991,3985.7,3985.4,4.32957]
[1733541311629,0.17536,3985.5,3985.3,0.7769]
[1733541311819,7.04456613,3985.7,3985.3,0.7769]
[1733541311820,1.08055991,3985.4,3985.3,0.7769]
[1733541313426,0.17536,3985.4,3985.3,0.7769]
[1733541313620,3.2078,3985.7,3985.3,0.7769]
[1733541313820,0.17536,3985.5,3985.3,4.71671327]
[1733541314021,2.93156622,3986.2,3985.4,3.93981327]
[1733541314331,0.17534,3986.0,3985.7,0.17535]
[1733541314526,0.17532,3986.4,3985.9,3.93981327]
[1733541314724,0.17533,3986.1,3986.0,0.8193]
[1733541315224,3.2078,3986.1,3985.8,3.93981327]
[1733541315428,0.17536,3985.6,3985.5,0.4072]
[1733541316826,0.17536,3985.6,3985.5,6.311734]
[1733541317330,1.08055991,3985.6,3985.5,0.4072]
[1733541317526,1.08055991,3985.6,3985.5,4.3434671]
[1733541318436,1.08055991,3985.6,3985.5,0.4072]
[1733541320930,0.17536,3985.4,3985.3,3.9362671]
[1733541321133,0.4072,3985.5,3985.2,3.9362671]
[1733541321430,1.08056991,3985.3,3985.2,3.93427297]
[1733541323327,0.17538,3985.2,3985.1,5.904534]
[1733541323533,0.17538,3985.1,3985.0,10.299834]
[1733541323835,3.2078,3985.7,3985.0,10.299834]
[1733541324037,0.17537,3985.4,3985.3,3.9334383]
[1733541325324,4.11299991,3985.7,3985.1,5.90015745]
[1733541325325,4.11299991,3985.7,3985.1,3.9334383]
[1733541325530,4.11299991,3985.7,3985.2,3.9334383]
[1733541325829,0.17537,3985.4,3985.3,3.9334383]
[1733541327827,0.17537,3985.4,3985.2,3.9334383]
[1733541328131,0.17537,3985.3,3985.2,0.17537]
[1733541328336,0.17536,3985.5,3985.3,0.17536]
[1733541328533,0.17536,3985.5,3985.3,4.1088854]
[1733541328733,4.11299991,3985.7,3985.3,4.1088854]
[1733541328734,4.11299991,3985.7,3985.3,3.9335254]
[1733541328938,0.17536,3985.5,3985.4,4.1088854]
[1733541329134,0.17536,3985.5,3985.4,3.9335254]
[1733541329334,0.17536,3985.5,3985.4,4.1088854]
[1733541329535,4.11299991,3985.7,3985.4,4.1088854]
[1733541329536,0.90519991,3986.0,3985.4,5.90015745]
[1733541329738,0.90519991,3986.0,3985.5,0.4134]
[1733541330039,0.17535,3985.7,3985.6,0.56986]
[1733541330227,0.17535,3985.8,3985.6,0.56986]
[1733541330431,0.17535,3985.8,3985.7,0.4082]
[1733541330631,0.90519991,3986.0,3985.7,0.58355]
[1733541330831,0.17535,3985.8,3985.7,0.58355]
[1733541331636,0.17534,3985.9,3985.8,0.17534]
[1733541331835,1.08053991,3986.0,3985.8,0.17534]
[1733541332342,1.08053991,3986.0,3985.7,0.4082]
[1733541332643,1.08053991,3986.0,3985.9,0.17534]
[1733541332951,1.08053991,3986.0,3985.9,6.07561547]
[1733541333144,1.08053991,3986.0,3985.8,0.17535]
[1733541333443,1.08053991,3986.0,3985.9,5.90050072]
[1733541333639,0.90519991,3986.0,3985.9,6.07584072]
[1733541333837,0.17534,3986.1,3985.9,5.90050072]
[1733541334145,0.17534,3986.1,3986.0,5.90050072]
[1733541334349,0.90519991,3986.3,3986.0,6.27840072]
[1733541334639,1.08051991,3986.3,3986.2,3.9337885]
[1733541334843,0.17533,3986.2,3986.0,6.27840072]
[1733541335140,0.90519991,3986.3,3986.0,6.27840072]
[1733541335340,0.90519991,3986.3,3986.2,5.90050072]
[1733541335545,1.08051991,3986.3,3986.2,5.90050072]
[1733541336243,0.17533,3986.2,3986.1,5.90050072]
[1733541336540,0.90519991,3986.3,3986.0,0.3779]
[1733541336743,0.90519991,3986.3,3986.2,6.07619269]
[1733541336744,0.17532,3986.3,3986.2,6.07619269]
[1733541337044,3.2078,3986.8,3986.6,0.17531]
[1733541337243,3.3831,3986.8,3986.7,5.15640722]
[1733541337641,3.3831,3986.8,3986.7,1.2228]
[1733541337838,3.3831,3986.8,3986.7,1.39811]
[1733541338146,3.3831,3986.8,3986.7,1.2228]
[1733541340846,3.2078,3986.8,3986.7,1.39811]
[1733541341051,3.2078,3987.2,3986.7,7.12321083]
[1733541341240,0.1753,3986.9,3986.8,0.1753]
[1733541342146,0.1753,3986.9,3986.8,6.07571083]
[1733541342651,0.1753,3987.0,3986.9,0.1753]
[1733541342850,0.17529,3987.1,3986.8,5.90041083]
[1733541343044,0.17529,3987.1,3986.7,1.2228]
[1733541343045,3.38309,3987.2,3987.0,3.93442507]
[1733541343246,3.38309,3987.2,3987.1,0.17529]
[1733541343550,3.2078,3987.2,3987.1,0.17529]
[1733541343749,6.14011674,3988.2,3987.0,5.90041083]
[1733541343948,0.90519991,3988.1,3987.7,3.93292902]
[1733541344149,0.90519991,3988.1,3987.8,5.09392902]
[1733541344349,0.17526,3987.9,3987.8,1.161]
[1733541345552,4.50809991,3988.2,3987.8,1.161]
[1733541345752,0.17525,3987.9,3987.8,1.161]
[1733541349852,0.17528,3987.4,3987.3,3.2078]
[1733541350053,0.17529,3987.1,3987.0,1.1843]
[1733541350558,4.11299991,3987.4,3986.7,0.90519991]
[1733541350760,0.1753,3986.8,3986.7,1.97399991]
[1733541351257,0.1753,3986.8,3986.7,1.0688]
[1733541352356,0.1753,3986.8,3986.7,0.665]
[1733541352560,0.3896,3987.0,3986.5,1.68569991]
[1733541352758,0.3896,3987.0,3986.5,0.90519991]
[1733541352759,0.17531,3986.6,3986.5,0.90519991]
[1733541354355,4.55120991,3987.4,3986.5,0.90519991]
[1733541354356,0.1753,3986.8,3986.5,0.90519991]
[1733541354663,3.64601,3987.4,3986.7,0.90519991]
[1733541354958,0.1753,3986.8,3986.7,0.90519991]
[1733541356765,0.1753,3986.8,3986.7,1.08050991]
[1733541357465,0.1753,3987.0,3986.8,0.1753]
[1733541358366,3.2078,3987.4,3986.7,0.90519991]
[1733541358563,0.1753,3986.8,3986.7,0.90519991]
[1733541363268,0.1753,3986.8,3986.6,0.3944]
[1733541363469,0.1753,3986.8,3986.7,0.90519991]
[1733541363767,3.2078,3987.4,3986.7,1.08050991]
[1733541363969,3.2078,3988.0,3987.3,0.90519991]
[1733541364168,0.3951,3988.0,3987.6,0.90519991]
[1733541364469,0.17526,3987.7,3987.6,0.90519991]
[1733541364663,0.17526,3987.8,3987.6,1.08045991]
[1733541364866,0.3951,3988.0,3987.6,0.90519991]
[1733541365167,0.17526,3987.7,3987.6,0.90519991]
[1733541365563,3.2078,3988.6,3987.6,0.90519991]
[1733541365765,0.17524,3988.2,3988.1,0.90519991]
[1733541366469,0.17525,3988.0,3987.9,0.665]
[1733541367266,0.17525,3988.0,3987.9,0.84025]
[1733541367468,0.17525,3988.0,3987.9,0.665]
[1733541367672,0.17525,3988.1,3987.9,0.84025]
[1733541368063,0.17524,3988.2,3988.0,0.17525]
[1733541368272,0.17524,3988.2,3988.1,0.7728]
[1733541368569,0.17524,3988.2,3988.1,1.34245]
[1733541368871,0.17524,3988.2,3988.1,1.34244]
[1733541369062,0.17524,3988.3,3988.1,1.34244]
[1733541369265,0.17524,3988.2,3988.1,1.34244]
[1733541369472,3.2078,3988.6,3988.1,1.34244]
[1733541369873,0.17524,3988.4,3988.2,0.17524]
[1733541370167,3.2078,3988.6,3988.4,0.17523]
[1733541370168,0.17523,3988.6,3988.4,0.17523]
[1733541370369,0.17523,3988.6,3988.1,1.1672]
[1733541370370,0.17523,3988.5,3988.3,0.17523]
[1733541370572,0.17523,3988.5,3988.1,1.1672]
[1733541370573,0.3951,3988.8,3988.1,1.1672]
[1733541370764,0.17523,3988.6,3988.4,0.17523]
[1733541370964,0.3951,3988.8,3988.1,1.1672]
[1733541371769,0.17525,3988.1,3988.0,3.2078]
[1733541372064,3.2078,3988.6,3987.9,0.385]
[1733541372269,0.17525,3988.0,3987.9,0.385]
[1733541372764,0.17525,3988.0,3987.5,3.2078]
[1733541372765,0.17527,3987.6,3987.5,3.2078]
[1733541373467,0.3872,3987.9,3987.1,7.52572902]
[1733541373468,0.17528,3987.3,3987.1,7.52572902]
[1733541373676,0.17528,3987.2,3987.1,7.52572902]
[1733541374268,0.17528,3987.2,3987.1,3.5928]
[1733541375074,3.2078,3987.8,3987.1,3.5928]
[1733541375371,0.17527,3987.5,3987.4,3.93115388]
[1733541377273,3.2078,3987.8,3987.1,3.76809]
[1733541377477,0.17528,3987.4,3987.2,0.17528]
[1733541377771,0.17528,3987.2,3987.1,3.5928]
[1733541377982,3.2078,3987.3,3986.7,3.93115388]
[1733541378170,0.17531,3986.6,3986.5,4.30985388]
[1733541378372,0.17531,3986.6,3986.5,0.3787]
[1733541378966,0.7959,3987.1,3986.5,0.3787]
[1733541379369,0.17531,3986.7,3986.5,0.3787]
[1733541380077,0.17531,3986.6,3986.5,0.3787]
[1733541380576,0.17532,3986.4,3986.3,0.7974]
[1733541383271,0.17531,3986.7,3986.3,0.7974]
[1733541383473,0.17531,3986.7,3986.4,1.95981402]
[1733541383669,0.17531,3986.6,3986.4,1.95981402]
[1733541383870,0.17531,3986.7,3986.5,0.17532]
[1733541384274,0.17531,3986.7,3986.6,5.90041083]
[1733541385075,0.17531,3986.8,3986.6,6.07572083]